fUST/lending_fUST_20251115
["ID","MTS","AMOUNT","RATE_DAILY","PERIOD"]
[393994205,1763168706687,250.0,0.00038956,30]
[393994206,1763168707164,162.380719,0.00038956,30]
[393994207,1763168707308,250.0,0.00038956,30]
[393994208,1763168707772,168.3888056,0.00038956,30]
[393994209,1763168707936,250.0,0.00038956,30]
[393994210,1763168708397,168.3888056,0.00038956,30]
[393994211,1763168708569,250.0,0.00038956,30]
[393994212,1763168708731,414.0,0.00038956,30]
[393994213,1763168709228,250.0,0.00038956,30]
[393994214,1763168709379,429.318,0.00038956,30]
[393994215,1763168709909,250.0,0.00038956,30]
[393994216,1763168710025,445.202766,0.00038956,30]
[393994217,1763168710530,250.0,0.00038956,30]
[393994218,1763168710660,461.67526834,0.00038956,30]
[393994219,1763168711246,250.0,0.00038956,30]
[393994220,1763168711280,478.75725327,0.00038956,30]
[393994221,1763168711800,250.0,0.00038956,30]
[393994222,1763168711926,496.47127164,0.00038956,30]
[393994223,1763168712547,514.84070869,0.00038956,30]
[393994224,1763168712700,250.0,0.00038956,30]
[393994225,1763168713203,533.88981491,0.00038956,30]
[393994226,1763168713497,250.0,0.00038956,30]
[393994227,1763168713978,533.88981491,0.00038956,30]
[393994228,1763168714138,250.0,0.00038956,30]
[393994229,1763168714883,250.0,0.00038956,30]
[393994230,1763168715398,250.0,0.00038956,30]
[393994231,1763168715999,250.0,0.00038956,30]
[393994232,1763168716099,151.0,0.00038956,30]
[393994233,1763168716635,250.0,0.00038956,30]
[393994234,1763168716730,151.0,0.00038956,30]
[393994235,1763168717286,250.0,0.00038956,30]
[393994236,1763168717492,151.0,0.00038956,30]
[393994237,1763168718032,250.0,0.00038956,30]
[393994238,1763168718096,151.0,0.00038956,30]
[393994239,1763168718727,151.0,0.00038956,30]
[393994240,1763168719340,151.0,0.00038956,30]
[393994241,1763168719943,151.0,0.00038956,30]
[393994242,1763168720550,151.0,0.00038956,30]
[393994243,1763168721158,250.0,0.00038956,30]
[393994244,1763168721187,151.0,0.00038956,30]
[393994245,1763168721792,250.0,0.00038956,30]
[393994246,1763168721820,151.0,0.00038956,30]
[393994247,1763168722401,250.0,0.00038956,30]
[393994248,1763168722434,151.0,0.00038956,30]
[393994249,1763168723029,250.0,0.00038956,30]
[393994250,1763168723062,151.0,0.00038956,30]
[393994251,1763168723660,250.0,0.00038956,30]
[393994252,1763168723691,151.0,0.00038956,30]
[393994253,1763168724286,151.0,0.00038956,30]
[393994254,1763168724320,250.0,0.00038956,30]
[393994255,1763168725316,151.0,0.00038956,30]
[393994256,1763168725346,250.0,0.00038956,30]
[393994257,1763168725549,151.0,0.00038956,30]
[393994258,1763168726260,151.0,0.00038956,30]
[393994259,1763168726913,151.0,0.00038956,30]
[393994260,1763168727506,151.0,0.00038956,30]
[393994262,1763168728141,151.0,0.00038956,30]
[393994263,1763168731349,151.0,0.00038956,30]
[393994264,1763168731967,151.0,0.00038956,30]
[393994265,1763168732567,151.0,0.00038956,30]
[393994274,1763168970896,418.5017444,0.00019,2]
[393994275,1763169006103,250.0,0.00038956,30]
[393994276,1763169006695,250.0,0.00038956,30]
[393994277,1763169007342,250.0,0.00038956,30]
[393994278,1763169007982,250.0,0.00038956,30]
[393994279,1763169008458,151.0,0.00038956,30]
[393994280,1763169009021,153.84054432,0.00038956,30]
[393994281,1763169009122,151.0,0.00038956,30]
[393994282,1763169009738,151.0,0.00038956,30]
[393994283,1763169010375,151.0,0.00038956,30]
[393994284,1763169010680,157.0722419,0.00038956,30]
[393994285,1763169011006,151.0,0.00038956,30]
[393994286,1763169012149,151.0,0.00038956,30]
[393994287,1763169012781,151.0,0.00038956,30]
[393994288,1763169013421,151.0,0.00038956,30]
[393994289,1763169016573,151.0,0.00038956,30]
[393994290,1763169017195,156.587,0.00038956,30]
[393994291,1763169017803,162.380719,0.00038956,30]
[393994292,1763169018425,168.3888056,0.00038956,30]
[393994293,1763169019096,174.61919141,0.00038956,30]
[393994294,1763169019728,181.08010149,0.00038956,30]
[393994295,1763169020375,187.78006525,0.00038956,30]
[393994296,1763169020894,250.0,0.00038956,30]
[393994297,1763169021011,194.72792766,0.00038956,30]
[393994298,1763169021515,250.0,0.00038956,30]
[393994299,1763169021680,201.93286099,0.00038956,30]
[393994300,1763169022169,250.0,0.00038956,30]
[393994301,1763169022258,209.40437684,0.00038956,30]
[393994302,1763169022801,250.0,0.00038956,30]
[393994303,1763169022897,217.15233878,0.00038956,30]
[393994304,1763169023421,250.0,0.00038956,30]
[393994305,1763169023532,225.18697532,0.00038956,30]
[393994306,1763169024060,250.0,0.00038956,30]
[393994307,1763169024149,233.51889341,0.00038956,30]
[393994308,1763169024883,250.0,0.00038956,30]
[393994309,1763169025231,242.15909246,0.00038956,30]
[393994310,1763169025869,251.11897888,0.00038956,30]
[393994311,1763169026486,260.4103811,0.00038956,30]
[393994312,1763169027119,270.0455652,0.00038956,30]
[393994313,1763169027715,280.03725112,0.00038956,30]
[393994314,1763169028389,290.39862941,0.00038956,30]
[393994315,1763169029028,290.39862941,0.00038956,30]
[393994353,1763169032590,-1123.02642622,0.00022709,2]
[393994355,1763169032600,-253.90659608,0.00022939,2]
[393994357,1763169032609,-150.0,0.00022942,2]
[393994359,1763169032619,-502.15661401,0.00022973,2]
[393994361,1763169032628,-500.0,0.00022973,2]
[393994363,1763169032637,-500.0,0.00022973,2]
[393994365,1763169032646,-502.5065032,0.00022973,2]
[393994367,1763169032655,-1200.0,0.00022983,2]
[393994369,1763169032664,-1200.0,0.00022984,2]
[393994371,1763169032673,-300.0,0.00022984,2]
[393994373,1763169032682,-300.0,0.00022984,2]
[393994375,1763169032691,-300.0,0.00022984,2]
[393994377,1763169032699,-300.0,0.00022984,2]
[393994379,1763169032708,-4169.5172315,0.00022985,2]
[393994381,1763169032717,-500.0,0.00022989,2]
[393994383,1763169032727,-500.0,0.00022989,2]
[393994385,1763169032736,-574.37063131,0.00022989,2]
[393994388,1763169032745,-500.0,0.00022989,2]
[393994391,1763169032754,-500.0,0.00022989,2]
[393994393,1763169032763,-500.0,0.00022989,2]
[393994396,1763169032773,-500.0,0.00022989,2]
[393994399,1763169032782,-500.0,0.00022989,2]
[393994402,1763169032791,-500.0,0.00022989,2]
[393994405,1763169032800,-500.0,0.00022989,2]
[393994408,1763169032810,-500.0,0.00022989,2]
[393994411,1763169032819,-500.0,0.00022989,2]
[393994414,1763169032828,-500.0,0.00022989,2]
[393994417,1763169032837,-500.0,0.00022989,2]
[393994418,1763169032847,-500.0,0.00022989,2]
[393994419,1763169032855,-500.0,0.00022989,2]
[393994421,1763169032864,-500.0,0.00022989,2]
[393994422,1763169032873,-500.0,0.00022989,2]
[393994423,1763169032882,-299.41619718,0.00022989,2]
[393994424,1763169032891,-500.0,0.00022989,2]
[393994425,1763169032900,-500.0,0.00022989,2]
[393994426,1763169032909,-500.0,0.00022989,2]
[393994427,1763169032919,-382.42108269,0.00022989,2]
[393994428,1763169032928,-500.0,0.00022989,2]
[393994429,1763169032938,-500.0,0.00022989,2]
[393994430,1763169032947,-500.0,0.00022989,2]
[393994431,1763169032955,-500.0,0.00022989,2]
[393994433,1763169032965,-500.0,0.00022989,2]
[393994434,1763169032974,-500.0,0.00022989,2]
[393994436,1763169032983,-500.0,0.00022989,2]
[393994438,1763169032992,-612.77577168,0.00022989,2]
[393994440,1763169033001,-159.85008988,0.00022989,2]
[393994442,1763169033010,-500.0,0.00022989,2]
[393994444,1763169033019,-306.60230863,0.00022989,2]
[393994446,1763169033028,-500.0,0.00022989,2]
[393994447,1763169033038,-500.0,0.00022989,2]
[393994449,1763169033047,-500.0,0.00022989,2]
[393994450,1763169033056,-16530.21119455,0.0002299,2]
[393994451,1763169033065,-7637.82004022,0.0002299,2]
[393994452,1763169033080,-9536.9688951,0.0002299,2]
[393994453,1763169033091,-518.72440627,0.0002299,2]
[393994454,1763169033102,-1123.02642622,0.0002299,2]
[393994455,1763169033125,-30511.76564837,0.0002299,2]
[393994466,1763169038670,-500.0,0.00022989,2]
[393994468,1763169038680,-671.69458382,0.0002299,2]
[393994469,1763169038690,-186.89899772,0.00023573,2]
[393994470,1763169038700,-500.0,0.00023573,2]
[393994471,1763169038709,-500.0,0.00023573,2]
[393994472,1763169038719,-500.0,0.00023573,2]
[393994473,1763169038729,-500.0,0.00023573,2]
[393994474,1763169038738,-500.0,0.00023573,2]
[393994475,1763169038748,-267.17014687,0.00023573,2]
[393994476,1763169038757,-500.0,0.00023573,2]
[393994477,1763169038767,-500.0,0.00023573,2]
[393994478,1763169038781,-516.91074328,0.00023573,2]
[393994479,1763169038792,-500.0,0.00023573,2]
[393994480,1763169038802,-500.0,0.00023573,2]
[393994481,1763169038812,-500.0,0.00023573,2]
[393994482,1763169038822,-500.0,0.00023573,2]
[393994483,1763169038832,-500.0,0.00023573,2]
[393994484,1763169038842,-151.0,0.00023573,2]
[393994485,1763169038852,-151.0,0.00023573,2]
[393994486,1763169038862,-152.0084879,0.00023573,2]
[393994487,1763169038872,-151.99056464,0.00023573,2]
[393994488,1763169038881,-151.0,0.00023573,2]
[393994489,1763169038892,-151.0,0.00023573,2]
[393994490,1763169038902,-587.0,0.00023573,2]
[393994491,1763169038911,-151.0,0.00023573,2]
[393994492,1763169038921,-1130.0,0.00023573,2]
[393994493,1763169038932,-500.0,0.0002371,2]
[393994494,1763169038942,-151.0,0.0002371,2]
[393994495,1763169038951,-151.0,0.0002371,2]
[393994496,1763169038962,-151.0,0.0002371,2]
[393994497,1763169038971,-587.0,0.0002371,2]
[393994498,1763169038981,-151.0,0.0002371,2]
[393994499,1763169038991,-1130.0,0.0002371,2]
[393994500,1763169039001,-500.0,0.00023726,2]
[393994501,1763169039010,-619.94439947,0.00023726,2]
[393994502,1763169039019,-178.72909697,0.00023726,2]
[393994503,1763169039028,-500.0,0.00023726,2]
[393994504,1763169039038,-500.0,0.00023726,2]
[393994505,1763169039048,-257.78111213,0.00023726,2]
[393994506,1763169039057,-9889.79645267,0.00023727,2]
[393994507,1763169039069,-11798.62554365,0.00023727,2]
[393994508,1763169039080,-5166.83590327,0.00023727,2]
[393994509,1763169039094,-383.21001361,0.00023727,2]
[393994510,1763169039106,-862761.5320868,0.00023727,2]
[393994511,1763169039116,-500.0,0.00023773,2]
[393994512,1763169039125,-500.0,0.00023773,2]
[393994513,1763169039135,-500.0,0.00023773,2]
[393994514,1763169039145,-500.0,0.00023773,2]
[393994515,1763169039154,-500.0,0.00023773,2]
[393994516,1763169039164,-500.0,0.00023773,2]
[393994517,1763169039173,-500.0,0.00023773,2]
[393994518,1763169039183,-502.17060646,0.00023773,2]
[393994519,1763169039193,-500.0,0.00023773,2]
[393994520,1763169039203,-500.0,0.00023773,2]
[393994521,1763169039215,-500.0,0.00023773,2]
[393994522,1763169039226,-500.0,0.00023773,2]
[393994523,1763169039235,-500.0,0.00023773,2]
[393994524,1763169039244,-2711.01353047,0.00023789,2]
[393994525,1763169039254,-183.54258515,0.000238,2]
[393994526,1763169039266,-183.54258515,0.000238,2]
[393994527,1763169039276,-500.0,0.00023847,2]
[393994528,1763169039286,-151.0,0.00023847,2]
[393994529,1763169039295,-165.25786638,0.00023847,2]
[393994530,1763169039305,-587.0,0.00023847,2]
[393994531,1763169039314,-151.0,0.00023847,2]
[393994532,1763169039324,-1130.0,0.00023847,2]
[393994533,1763169039333,-151.0,0.00023926,2]
[393994534,1763169039343,-151.0,0.00023926,2]
[393994535,1763169039353,-151.0,0.00023926,2]
[393994536,1763169039362,-151.0,0.00023926,2]
[393994537,1763169039371,-151.0,0.00023926,2]
[393994538,1763169039380,-151.0,0.00023926,2]
[393994539,1763169039389,-151.0,0.00023926,2]
[393994540,1763169039399,-151.0,0.00023926,2]
[393994541,1763169039408,-151.0,0.00023926,2]
[393994542,1763169039417,-151.0,0.00023926,2]
[393994543,1763169039426,-151.0,0.00023926,2]
[393994544,1763169039434,-177.53843041,0.00023926,2]
[393994545,1763169039445,-500.0,0.00023929,2]
[393994546,1763169039454,-294.60138134,0.00023929,2]
[393994547,1763169039463,-1450.25269899,0.00023929,2]
[393994548,1763169039473,-786.1,0.0002393,3]
[393994549,1763169039482,-500.0,0.00023937,2]
[393994550,1763169039491,-500.0,0.00023937,2]
[393994551,1763169039500,-500.0,0.00023938,2]
[393994552,1763169039510,-500.0,0.00023939,2]
[393994553,1763169039520,-500.0,0.00023939,2]
[393994554,1763169039529,-500.0,0.00023939,2]
[393994555,1763169039538,-615.76,0.00023939,2]
[393994556,1763169039547,-636.4907416,0.0002394,2]
[393994557,1763169039557,-13247.7830655,0.0002394,2]
[393994558,1763169039567,-272.7817464,0.0002394,2]
[393994559,1763169039575,-17893.6835418,0.0002394,2]
[393994560,1763169039585,-2099.3085696,0.0002394,2]
[393994561,1763169039605,-500.0,0.00023973,2]
[393994562,1763169039624,-500.0,0.00023973,2]
[393994563,1763169039633,-501.82660943,0.00023973,2]
[393994564,1763169039642,-500.0,0.00023973,2]
[393994565,1763169039651,-500.92677704,0.00023973,2]
[393994566,1763169039660,-500.0,0.00023973,2]
[393994567,1763169039670,-500.0,0.00023984,2]
[393994568,1763169039678,-294.1134968,0.00023984,2]
[393994569,1763169039688,-587.0,0.00023984,2]
[393994570,1763169039697,-198.0,0.00023984,2]
[393994571,1763169039705,-500.0,0.00024066,2]
[393994572,1763169039714,-500.0,0.00024121,2]
[393994573,1763169039724,-500.0,0.00024121,2]
[393994574,1763169039733,-587.0,0.00024121,2]
[393994575,1763169039742,-500.0,0.00024203,2]
[393994576,1763169039751,-500.0,0.00024258,2]
[393994577,1763169039760,-587.0,0.00024258,2]
[393994578,1763169039770,-1000.0,0.00024321,2]
[393994579,1763169039778,-218.24908621,0.00024321,2]
[393994580,1763169039787,-1000.0,0.00024321,2]
[393994581,1763169039796,-500.0,0.00024321,2]
[393994582,1763169039806,-194.28305474,0.00024321,2]
[393994583,1763169039816,-500.80962388,0.00024321,2]
[393994584,1763169039825,-1000.0,0.00024321,2]
[393994585,1763169039834,-500.0,0.0002434,2]
[393994586,1763169039843,-500.0,0.00024395,2]
[393994587,1763169039852,-587.0,0.00024395,2]
[393994588,1763169039861,-556.95839014,0.00024477,2]
[393994589,1763169039870,-500.0,0.00024532,2]
[393994590,1763169039879,-587.0,0.00024532,2]
[393994591,1763169039888,-500.0,0.00024658,2]
[393994592,1763169039897,-500.0,0.00024669,2]
[393994593,1763169039906,-587.0,0.00024669,2]
[393994594,1763169039916,-151.0,0.000247,10]
[393994595,1763169039925,-500.0,0.00024795,2]
[393994596,1763169039935,-151.0,0.000248,8]
[393994597,1763169039944,-500.0,0.00024806,2]
[393994598,1763169039955,-587.0,0.00024806,2]
[393994599,1763169039964,-1500.0,0.00024868,2]
[393994600,1763169039974,-1500.0,0.00024868,2]
[393994601,1763169039984,-1500.0,0.00024868,2]
[393994602,1763169039994,-500.0,0.00024873,2]
[393994603,1763169040003,-500.0,0.00024873,2]
[393994604,1763169040012,-500.0,0.00024873,2]
[393994605,1763169040021,-500.0,0.00024873,2]
[393994606,1763169040030,-500.0,0.00024873,2]
[393994607,1763169040039,-333.941597,0.000249,2]
[393994608,1763169040048,-325596.512327,0.000249,2]
[393994609,1763169040058,-310.0,0.00024932,2]
[393994610,1763169040067,-177.0,0.00024942,2]
[393994611,1763169040077,-500.0,0.00024943,2]
[393994612,1763169040086,-587.0,0.00024943,2]
[393994613,1763169040095,-824.0,0.00024951,2]
[393994614,1763169040105,-420.0,0.00024951,2]
[393994615,1763169040116,-420.0,0.00024951,2]
[393994616,1763169040125,-160.0,0.00025002,2]
[393994617,1763169040134,-1680.0,0.00025065,2]
[393994618,1763169040143,-500.0,0.0002508,2]
[393994619,1763169040151,-587.0,0.0002508,2]
[393994620,1763169040162,-500.0,0.00025217,2]
[393994621,1763169040171,-587.0,0.00025217,2]
[393994622,1763169040180,-500.0,0.00025354,2]
[393994623,1763169040189,-587.0,0.00025354,2]
[393994624,1763169040198,-773.28380445,0.00025416,2]
[393994625,1763169040210,-2000.0,0.00025416,2]
[393994626,1763169040219,-1500.0,0.00025416,2]
[393994627,1763169040229,-1000.0,0.00025421,2]
[393994628,1763169040238,-500.0,0.00025491,2]
[393994629,1763169040248,-587.0,0.00025491,2]
[393994630,1763169040257,-260.0,0.0002555,2]
[393994631,1763169040267,-500.0,0.00025628,2]
[393994632,1763169040277,-587.0,0.00025628,2]
[393994634,1763169040288,-293.5575576,0.000257,2]
[393994636,1763169040297,-279.0,0.00025765,2]
[393994638,1763169040306,-587.0,0.00025765,2]
[393994640,1763169040316,-587.0,0.00025902,2]
[393994642,1763169040324,-2500.0,0.00025964,2]
[393994644,1763169040333,-299.54342765,0.00025968,2]
[393994646,1763169040342,-500.0,0.00026027,2]
[393994648,1763169040351,-500.0,0.00026027,2]
[393994650,1763169040360,-587.0,0.00026039,2]
[393994652,1763169040369,-360.0,0.00026098,2]
[393994653,1763169040379,-587.0,0.00026176,2]
[393994654,1763169040388,-412.46483272,0.00026282,2]
[393994655,1763169040396,-738.42275021,0.00026282,2]
[393994656,1763169040405,-1460.15806665,0.00026282,2]
[393994657,1763169040413,-648.39482609,0.00026282,2]
[393994658,1763169040422,-587.0,0.00026313,2]
[393994659,1763169040430,-768.15293272,0.00026432,2]
[393994660,1763169040439,-587.0,0.0002645,2]
[393994661,1763169040447,-1908.5044464,0.00026512,2]
[393994662,1763169040456,-587.0,0.00026587,2]
[393994663,1763169040465,-768.15293272,0.00026614,2]
[393994671,1763169040657,-460.0,0.00026646,2]
[393994674,1763169040668,-453.738808,0.00026676,2]
[393994676,1763169040678,-599.0,0.00026724,2]
[393994678,1763169040687,-768.15293272,0.00026797,2]
[393994680,1763169040696,-204.0,0.00026942,2]
[393994682,1763169040705,-636.4907416,0.00026973,2]
[393994684,1763169040714,-768.15293272,0.0002698,2]
[393994686,1763169040723,-272.7817464,0.00027043,2]
[393994687,1763169040732,-587.0,0.00027086,2]
[393994690,1763169040742,-768.15293272,0.00027162,2]
[393994692,1763169040751,-560.0,0.00027194,2]
[393994694,1763169040759,-1584.0,0.00027337,2]
[393994696,1763169040768,-768.15293272,0.00027345,2]
[393994697,1763169040778,-768.92108565,0.00027528,2]
[393994699,1763169040787,-660.0,0.00027742,2]
[393994701,1763169040797,-160.0,0.0002779,2]
[393994703,1763169040806,-4074.48552111,0.00027932,2]
[393994705,1763169040815,-760.0,0.0002829,2]
[393994707,1763169040826,-1460.15806665,0.00028544,2]
[393994709,1763169040835,-3031.16,0.000287,2]
[393994711,1763169040844,-2955.979957,0.000288,2]
[393994713,1763169040853,-860.0,0.00028838,2]
[393994715,1763169040862,-231.0,0.00028942,2]
[393994717,1763169040871,-3992.6204743,0.00029157,2]
[393994719,1763169040881,-899.47734982,0.00029386,2]
[393994721,1763169040890,-638.0,0.00029404,2]
[393994723,1763169040899,-175.27314879,0.00029639,2]
[393994725,1763169040908,-659.5682812,0.00029885,2]
[393994727,1763169040918,-1281.999999,0.0003,2]
[393994729,1763169040926,-2000.0,0.0003,7]
[393994731,1763169040935,-636.4907416,0.00030006,2]
[393994733,1763169040944,-228.62364627,0.00030019,2]
[393994735,1763169040953,-350.54629764,0.00030019,2]
[393994737,1763169040962,-500.0,0.00030137,2]
[393994739,1763169040971,-272.7817464,0.00030145,2]
[393994741,1763169040981,-350.54629764,0.00030199,9]
[393994743,1763169040990,-500.0,0.00030274,2]
[393994745,1763169040999,-890.8740458,0.00030321,2]
[393994747,1763169041008,-350.54629764,0.0003038,17]
[393994749,1763169041018,-500.0,0.00030411,2]
[393994751,1763169041028,-500.0,0.00030548,2]
[393994753,1763169041037,-350.54629764,0.0003056,25]
[393994755,1763169041046,-500.0,0.00030685,2]
[393994757,1763169041060,-350.54629764,0.00030741,32]
[393994760,1763169041077,-1460.15806665,0.00030806,2]
[393994761,1763169041086,-500.0,0.00030822,2]
[393994763,1763169041095,-350.54629764,0.00030921,40]
[393994765,1763169041104,-258.0,0.00030942,2]
[393994767,1763169041113,-500.0,0.00030959,2]
[393994769,1763169041122,-500.0,0.00031096,2]
[393994771,1763169041131,-350.54629764,0.00031102,48]
[393994773,1763169041140,-228.62364626,0.00031199,30]
[393994775,1763169041150,-175.27314878,0.00031199,30]
[393994777,1763169041159,-500.0,0.00031233,2]
[393994779,1763169041169,-228.62364627,0.00031283,56]
[393994781,1763169041177,-350.54629764,0.00031283,56]
[393994783,1763169041187,-300.0,0.000313,5]
[393994785,1763169041196,-500.0,0.0003137,2]
[393994787,1763169041208,-412.46483272,0.00031371,2]
[393994789,1763169041217,-738.42275021,0.00031371,2]
[393994791,1763169041226,-648.39482609,0.00031371,2]
[393994793,1763169041235,-350.54629764,0.00031463,63]
[393994795,1763169041244,-500.0,0.00031507,2]
[393994797,1763169041255,-350.54629764,0.00031644,71]
[393994799,1763169041264,-394.06397694,0.00031644,2]
[393994801,1763169041275,-350.54629764,0.00031824,79]
[393994803,1763169041286,-333.941597,0.00031996,2]
[393994805,1763169041296,-350.54629764,0.00032005,86]
[393994807,1763169041309,-10000.0,0.00032144,10]
[393994810,1763169041318,-10000.0,0.00032153,10]
[393994811,1763169041327,-10000.0,0.00032162,10]
[393994813,1763169041337,-4208.84376413,0.0003217,10]
[393994815,1763169041346,-350.54629764,0.00032185,94]
[393994817,1763169041355,-333.941597,0.00032223,10]
[393994819,1763169041364,-350.54629764,0.00032366,102]
[393994821,1763169041373,-203.0,0.000325,5]
[393994823,1763169041382,-250.22433908,0.00032877,7]
[393994825,1763169041391,-285.0,0.00032942,120]
[393994827,1763169041400,-155.46464644,0.00033,2]
[393994829,1763169041408,-636.4907416,0.00033039,2]
[393994831,1763169041417,-1460.15806665,0.00033068,2]
[393994833,1763169041427,-453.738808,0.00033165,2]
[393994835,1763169041438,-157.41334824,0.000332,117]
[393994837,1763169041448,-272.7817464,0.00033248,2]
[393994839,1763169041457,-151.0,0.00033704,7]
[393994841,1763169041467,-151.0,0.00033704,7]
[393994843,1763169041475,-500.0,0.00033704,7]
[393994846,1763169041484,-151.0,0.00033704,7]
[393994848,1763169041495,-151.0,0.00033704,7]
[393994850,1763169041503,-151.66255476,0.00033704,7]
[393994852,1763169041512,-195.53526998,0.00033704,7]
[393994854,1763169041522,-500.0,0.00033704,7]
[393994856,1763169041530,-219.12455109,0.00033704,7]
[393994858,1763169041539,-500.0,0.00033704,7]
[393994860,1763169041549,-500.0,0.00033704,7]
[393994862,1763169041557,-500.0,0.00033704,7]
[393994863,1763169041566,-500.0,0.00033704,7]
[393994865,1763169041575,-151.0,0.00033704,7]
[393994867,1763169041584,-151.0,0.00033704,7]
[393994869,1763169041592,-151.0,0.00033704,7]
[393994871,1763169041601,-151.15914308,0.00033704,7]
[393994873,1763169041610,-151.0,0.00033841,7]
[393994875,1763169041618,-500.0,0.00033841,7]
[393994877,1763169041627,-151.0,0.00033841,7]
[393994880,1763169041636,-500.0,0.00033841,7]
[393994881,1763169041645,-500.0,0.00033841,7]
[393994883,1763169041654,-500.0,0.00033841,7]
[393994885,1763169041663,-225.48262416,0.00033841,7]
[393994888,1763169041672,-151.0,0.00033841,7]
[393994889,1763169041681,-151.0,0.00033841,7]
[393994891,1763169041691,-230.90105677,0.00033978,7]
[393994893,1763169041700,-252.167452,0.00033978,7]
[393994895,1763169041709,-500.0,0.00033978,7]
[393994897,1763169041718,-500.0,0.00033978,7]
[393994899,1763169041727,-354.92942094,0.00033978,7]
[393994901,1763169041736,-500.0,0.00033978,7]
[393994903,1763169041746,-245.48816271,0.00033978,7]
[393994905,1763169041755,-212.81961972,0.00033978,7]
[393994907,1763169041764,-151.0,0.00033978,31]
[393994909,1763169041774,-151.0,0.00033978,31]
[393994911,1763169041783,-164.322432,0.00033978,31]
[393994913,1763169041793,-151.0,0.00033978,31]
[393994915,1763169041803,-151.0,0.00033978,31]
[393994917,1763169041813,-214.467643,0.00033978,31]
[393994919,1763169041822,-151.0,0.00033978,31]
[393994921,1763169041831,-151.0,0.00033978,31]
[393994923,1763169041840,-486.910272,0.00033978,2]
[393994926,1763169041850,-152.463091,0.00033978,31]
[393994928,1763169041859,-486.910272,0.00033978,2]
[393994930,1763169041868,-486.910272,0.00033978,2]
[393994932,1763169041878,-151.0,0.00033978,31]
[393994934,1763169041887,-486.910272,0.00033978,2]
[393994936,1763169041896,-151.0,0.00033978,31]
[393994937,1763169041905,-151.0,0.00033978,31]
[393994940,1763169041915,-269.244321,0.00033978,30]
[393994941,1763169041924,-151.0,0.00033978,31]
[393994943,1763169041933,-151.0,0.00033978,31]
[393994946,1763169041943,-455.418,0.00033978,31]
[393994948,1763169041952,-455.418,0.00033978,31]
[393994950,1763169041961,-455.418,0.00033978,31]
[393994951,1763169041970,-455.418,0.00033978,31]
[393994952,1763169041979,-151.0,0.00033978,31]
[393994954,1763169041988,-172.405905,0.00033978,31]
[393994956,1763169041997,-172.405905,0.00033978,31]
[393994957,1763169042007,-172.405905,0.00033978,31]
[393994958,1763169042016,-172.405905,0.00033978,31]
[393994959,1763169042026,-357.151608,0.00033978,31]
[393994960,1763169042036,-357.151608,0.00033978,31]
[393994961,1763169042045,-357.151608,0.00033978,31]
[393994962,1763169042055,-357.151608,0.00033978,31]
[393994963,1763169042064,-151.0,0.00033978,31]
[393994964,1763169042074,-196.781899,0.00033978,31]
[393994965,1763169042083,-151.0,0.00033978,31]
[393994966,1763169042094,-196.781899,0.00033978,31]